bitfinex/quotes_BTCUSD_20220731
["timestamp","ask_amount","ask_price","bid_price","bid_amount"]
[1659257913676,0.604,23595.0,23590.0,0.40535733]
[1659257913939,0.125645,23594.0,23590.0,0.40535733]
[1659257914204,0.567,23595.0,23590.0,0.40535733]
[1659257914426,0.125645,23594.0,23591.0,0.03363261]
[1659257914646,0.00768723,23594.0,23590.0,0.40535733]
[1659257914862,0.125645,23593.0,23590.0,0.40535733]
[1659257915531,0.00768723,23594.0,23590.0,0.40535733]
[1659257915761,0.125645,23593.0,23590.0,0.40535733]
[1659257915984,0.00768723,23594.0,23590.0,0.40535733]
[1659257916216,0.125645,23593.0,23590.0,0.40535733]
[1659257916439,0.037,23593.0,23590.0,0.40535733]
[1659257917163,0.037,23593.0,23591.0,0.00051367]
[1659257917391,0.162645,23593.0,23590.0,0.40535733]
[1659257917611,0.037,23593.0,23590.0,0.40535733]
[1659257917847,0.00768723,23594.0,23590.0,0.40535733]
[1659257918068,0.125645,23593.0,23590.0,0.40535733]
[1659257918292,0.00768723,23594.0,23590.0,0.40535733]
[1659257918514,0.125645,23593.0,23591.0,0.03363261]
[1659257918747,0.125645,23593.0,23590.0,0.40535733]
[1659257918981,0.40725733,23593.0,23589.0,0.0011]
[1659257919261,0.125645,23592.0,23589.0,0.0011]
[1659257919496,0.40725733,23593.0,23589.0,0.0011]
[1659257919497,0.05091631,23590.0,23589.0,0.0011]
[1659257919717,0.70725733,23593.0,23589.0,0.0011]
[1659257919947,0.125645,23592.0,23589.0,0.0011]
[1659257920189,0.05091631,23590.0,23589.0,0.0011]
[1659257920402,0.43273108,23590.0,23589.0,0.0011]
[1659257921297,0.17656131,23590.0,23589.0,0.0011]
[1659257922434,0.22356131,23590.0,23589.0,0.0011]
[1659257923173,0.23124854,23590.0,23589.0,0.0011]
[1659257923845,0.18424854,23590.0,23589.0,0.0011]
[1659257924506,0.22924854,23590.0,23589.0,0.0011]
[1659257924734,0.05091631,23588.0,23583.0,0.5725]
[1659257924962,0.05091631,23588.0,23583.0,0.97975733]
[1659257926538,0.08991631,23588.0,23583.0,0.97975733]
[1659257926783,0.70725733,23587.0,23583.0,0.0001]
[1659257927151,0.05091631,23584.0,23583.0,0.0001]
[1659257927361,0.00768723,23586.0,23583.0,0.0001]
[1659257927568,0.125645,23585.0,23583.0,0.0001]
[1659257928410,0.038,23585.0,23583.0,0.0001]
[1659257928618,0.163645,23585.0,23583.0,0.0001]
[1659257929052,0.45817364,23584.0,23583.0,0.0001]
[1659257929494,0.53290233,23584.0,23583.0,0.0001]
[1659257929767,0.125645,23584.0,23583.0,0.0001]
[1659257929976,0.00768723,23586.0,23583.0,0.0001]
[1659257930193,0.05091631,23584.0,23583.0,0.0001]
[1659257930416,0.49617364,23584.0,23583.0,0.0001]
[1659257930638,0.21456131,23584.0,23583.0,0.0001]
[1659257930845,0.08891631,23584.0,23583.0,0.0001]
[1659257931524,0.49617364,23584.0,23583.0,0.0001]
[1659257931757,0.45817364,23584.0,23583.0,0.0001]
[1659257931973,0.58381864,23584.0,23583.0,0.0001]
[1659257932420,2.04103889,23584.0,23583.0,0.0001]
[1659257933074,1.74103889,23584.0,23583.0,0.0001]
[1659257933300,0.57090233,23584.0,23583.0,0.0001]
[1659257933516,0.163645,23584.0,23583.0,0.0001]
[1659257933739,0.00768723,23586.0,23583.0,0.0001]
[1659257933947,0.125645,23585.0,23583.0,0.0001]
[1659257934167,0.05091631,23584.0,23583.0,0.0001]
[1659257934992,1.50932894,23584.0,23583.0,0.0001]
[1659257935443,0.58381864,23584.0,23583.0,0.0001]
[1659257935692,0.05091631,23582.0,23581.0,0.10226507]
[1659257936183,0.125645,23582.0,23581.0,0.10226507]
[1659257936409,0.036,23582.0,23581.0,0.10226507]
[1659257937104,0.44325733,23582.0,23581.0,0.10226507]
[1659257937320,0.56890233,23582.0,23581.0,0.10226507]
[1659257937768,0.53290233,23582.0,23581.0,0.10226507]
[1659257938444,0.56890233,23582.0,23581.0,0.10226507]
[1659257938879,0.161645,23582.0,23581.0,0.10226507]
[1659257939115,0.036,23582.0,23581.0,0.10226507]
[1659257939820,0.5966,23585.0,23581.0,0.10226507]
[1659257940058,0.13333223,23584.0,23581.0,0.10226507]
[1659257940286,0.00768723,23584.0,23581.0,0.10226507]
[1659257940504,0.125645,23583.0,23581.0,0.10226507]
[1659257941696,0.2562143,23587.0,23581.0,0.10226507]
[1659257941697,0.21189,23598.0,23585.0,0.05]
[1659257941924,0.5548,23596.0,23591.0,0.1285]
[1659257942151,0.40725733,23597.0,23591.0,0.1285]
[1659257942703,0.40725733,23597.0,23589.0,0.1285]
[1659257942704,0.66343796,23597.0,23589.0,0.1285]
[1659257942928,0.66343796,23597.0,23590.0,0.40725733]
[1659257943174,0.05,23595.0,23585.0,0.5664]
[1659257943407,0.05,23595.0,23584.0,0.05]
[1659257943408,0.05091631,23591.0,23584.0,0.05]
[1659257943640,0.70725733,23590.0,23582.0,0.5804]
[1659257943876,0.70725733,23590.0,23581.0,0.10226507]
[1659257943877,0.43911733,23589.0,23581.0,0.10226507]
[1659257944106,0.40725733,23588.0,23581.0,0.10226507]
[1659257944346,0.40725733,23588.0,23581.0,0.15226507]
[1659257944572,0.40725733,23588.0,23581.0,0.10226507]
[1659257945067,0.40725733,23588.0,23581.0,0.15226507]
[1659257945284,0.40725733,23588.0,23581.0,0.10226507]
[1659257946478,0.45025733,23588.0,23581.0,0.10226507]
[1659257946716,0.40725733,23587.0,23581.0,0.10226507]
[1659257947646,0.33186,23589.0,23582.0,0.40725733]
[1659257947881,0.0201,23598.0,23588.0,0.1285]
[1659257948105,0.0201,23598.0,23591.0,0.1285]
[1659257948106,0.42735733,23598.0,23591.0,0.1285]
[1659257948343,1.1847,23599.0,23591.0,0.1285]
[1659257948344,0.43910733,23597.0,23591.0,0.1285]
[1659257948610,0.40725733,23596.0,23591.0,0.1285]
[1659257948861,0.40725733,23596.0,23586.0,0.6821]
[1659257949079,0.6168,23595.0,23586.0,1.08946283]
[1659257949314,0.40725733,23594.0,23587.0,0.3]
[1659257949535,0.40725733,23594.0,23586.0,1.08946283]
[1659257949755,0.40725733,23594.0,23586.0,1.08935733]
[1659257950308,0.40725733,23594.0,23586.0,1.13935733]
[1659257950408,0.44825733,23594.0,23586.0,1.08935733]
[1659257950633,0.40725733,23593.0,23586.0,0.5536]
[1659257952486,0.41725733,23593.0,23586.0,0.6246]
[1659257952720,0.40725733,23592.0,23586.0,0.6246]
[1659257953203,0.40725733,23592.0,23586.0,0.071]
[1659257953426,0.53910733,23592.0,23586.0,0.071]
[1659257953671,0.40725733,23591.0,23586.0,0.071]
[1659257953884,0.40725733,23591.0,23581.0,1.25606507]
[1659257953885,0.03186,23590.0,23581.0,1.25606507]
[1659257954169,0.70725733,23589.0,23581.0,1.25606507]
[1659257954381,1.04286,23590.0,23581.0,1.25624347]
[1659257954382,0.40725733,23588.0,23581.0,1.25624347]
[1659257954609,0.40725733,23588.0,23581.0,0.66444347]
[1659257954826,0.40725733,23588.0,23581.0,0.10244347]
[1659257955570,0.40725733,23588.0,23581.0,0.10226507]
[1659257956500,0.40925733,23588.0,23581.0,0.44426507]
[1659257956739,0.40725733,23587.0,23581.0,0.14426507]
[1659257957457,0.40925733,23588.0,23582.0,0.01264348]
[1659257957696,0.40925733,23588.0,23583.0,0.1291]
[1659257958177,0.40925733,23588.0,23583.0,0.14174348]
[1659257958178,0.40725733,23588.0,23583.0,0.14174348]
[1659257958409,0.40925733,23588.0,23583.0,0.18874348]
[1659257958647,0.40925733,23588.0,23583.0,0.1761]
[1659257958870,0.40925733,23588.0,23583.0,0.047]
[1659257959807,0.40725733,23588.0,23581.0,0.6330224]
[1659257960498,0.40925733,23588.0,23581.0,0.69287848]
[1659257961941,0.40725733,23588.0,23581.0,0.64587848]
[1659257962365,0.40725733,23588.0,23581.0,0.69287848]
[1659257962582,0.40925733,23588.0,23581.0,0.28562115]
[1659257962839,0.40725733,23587.0,23581.0,0.28562115]
[1659257963735,0.40725733,23587.0,23581.0,0.23862115]
[1659257964220,0.40725733,23587.0,23581.0,0.22576507]
[1659257964451,0.68186,23586.0,23581.0,0.17126507]
[1659257964680,0.40725733,23585.0,23581.0,0.17126507]
[1659257964914,0.05091631,23582.0,23581.0,0.17126507]
[1659257965177,0.85055733,23585.0,23581.0,0.20489768]
[1659257965178,0.40725733,23585.0,23581.0,0.20489768]
[1659257965407,0.014,23587.0,23581.0,0.20489768]
[1659257965618,0.40725733,23586.0,23581.0,0.20489768]
[1659257965914,0.40725733,23586.0,23581.0,0.13089768]
[1659257966143,0.40725733,23587.0,23582.0,0.1291]
[1659257966609,0.003,23586.0,23582.0,0.1291]
[1659257967061,0.00768723,23585.0,23582.0,0.1291]
[1659257967784,0.003,23586.0,23582.0,0.1291]
[1659257968221,0.40725733,23587.0,23582.0,0.1291]
[1659257968473,0.017,23586.0,23583.0,0.00040119]
[1659257968926,0.017,23586.0,23583.0,0.0340338]
[1659257969148,0.017,23586.0,23582.0,0.2051]
[1659257969841,0.00768723,23585.0,23582.0,0.1291]
[1659257970060,0.40725733,23587.0,23582.0,0.16273261]
[1659257970543,0.40725733,23587.0,23582.0,0.10963261]
[1659257971429,0.40725733,23587.0,23582.0,0.076]
[1659257971912,0.40725733,23587.0,23581.0,0.09726507]
[1659257972590,0.46525733,23587.0,23581.0,0.09726507]
[1659257974497,0.52325733,23587.0,23581.0,0.09726507]
[1659257975926,0.40725733,23587.0,23581.0,0.39726507]
[1659257976149,0.40725733,23587.0,23581.0,0.09726507]
[1659257976607,0.46525733,23587.0,23581.0,0.39726507]
[1659257977054,0.46525733,23587.0,23581.0,0.09726507]
[1659257977338,0.46525733,23587.0,23581.0,0.39726507]
[1659257977576,0.46525733,23587.0,23581.0,0.09726507]
[1659257977796,0.40725733,23587.0,23581.0,0.09726507]
[1659257978269,0.40725733,23587.0,23581.0,0.44726507]
[1659257978492,0.40725733,23588.0,23587.0,9.98e-05]
[1659257978717,1.05445,23592.0,23587.0,0.03373241]
[1659257978718,0.98655733,23592.0,23587.0,0.03373241]
[1659257978948,0.40725733,23591.0,23587.0,0.03373241]
[1659257980570,0.45425733,23591.0,23587.0,0.03573241]
[1659257980796,0.047,23591.0,23587.0,0.03573241]
[1659257981672,0.047,23591.0,23587.0,0.03373241]
[1659257981892,0.40725733,23593.0,23587.0,0.03373241]
[1659257982586,0.40725733,23593.0,23587.0,0.03573241]
[1659257982587,0.047,23591.0,23587.0,0.03573241]
[1659257983504,0.04693306,23591.0,23587.0,0.03573241]
[1659257983938,0.40725733,23593.0,23588.0,0.0004011]
[1659257984399,0.048,23591.0,23588.0,0.0004011]
[1659257984842,0.00768723,23590.0,23587.0,0.03573241]
[1659257985063,0.00768723,23590.0,23587.0,0.0020998]
[1659257985295,0.00768723,23590.0,23588.0,0.03403371]
[1659257985510,0.048,23591.0,23587.0,0.0020998]
[1659257985965,0.70725733,23593.0,23587.0,9.98e-05]
[1659257986189,0.40725733,23592.0,23587.0,9.98e-05]
[1659257986456,0.048,23591.0,23587.0,0.0020998]
[1659257986921,0.048,23591.0,23588.0,0.03363261]
[1659257987140,0.00768723,23590.0,23587.0,0.0020998]
[1659257987360,0.048,23591.0,23587.0,0.0020998]
[1659257987830,0.40725733,23592.0,23587.0,9.98e-05]
[1659257988294,0.06781312,23595.0,23588.0,0.40725733]
[1659257988523,0.066,23592.0,23589.0,0.3]
[1659257988733,0.066,23592.0,23591.0,0.05]
[1659257989733,0.944,23597.0,23591.0,0.05]
[1659257989959,0.40725733,23596.0,23591.0,0.05]
[1659257991123,0.723,23597.0,23591.0,0.45725733]
[1659257991857,0.644,23597.0,23591.0,0.50725733]
[1659257992314,0.644,23597.0,23591.0,0.45725733]
[1659257992550,0.645,23597.0,23591.0,0.45725733]
[1659257992999,0.945,23597.0,23591.0,0.45725733]
[1659257993898,0.894,23597.0,23591.0,0.45725733]
[1659257994161,0.3,23597.0,23591.0,0.45725733]
[1659257994387,0.351,23597.0,23591.0,0.45725733]
[1659257995763,0.3,23597.0,23591.0,0.45725733]
[1659257996441,0.35,23597.0,23591.0,0.45725733]
[1659257996774,0.05,23597.0,23591.0,0.45725733]
[1659257997746,1.2552,23598.0,23591.0,0.45725733]
[1659257997978,1.66245733,23598.0,23591.0,0.45725733]
[1659257998425,1.71045733,23598.0,23591.0,0.45725733]
[1659257999794,1.66245733,23598.0,23591.0,0.45725733]
[1659258000531,1.71045733,23598.0,23591.0,0.45725733]
[1659258000743,0.43910733,23597.0,23588.0,0.5481]
[1659258000973,0.70725733,23596.0,23588.0,0.5981]
[1659258001202,0.40725733,23595.0,23588.0,0.5981]
[1659258001435,0.40725733,23595.0,23588.0,0.5481]
[1659258002587,0.40725733,23595.0,23588.0,0.6231]
[1659258003043,0.43910733,23595.0,23588.0,0.6231]
[1659258003275,0.40725733,23594.0,23588.0,0.6231]
[1659258003509,0.70725733,23594.0,23588.0,0.6231]
[1659258003730,0.70725733,23594.0,23588.0,0.5481]
[1659258003731,0.40725733,23593.0,23588.0,0.5481]
[1659258004488,0.40725733,23593.0,23588.0,0.6261]
[1659258005855,0.40725733,23593.0,23588.0,0.5481]
[1659258006565,0.40725733,23593.0,23588.0,0.5981]
[1659258006792,0.40725733,23593.0,23588.0,0.5481]
[1659258007255,0.40725733,23594.0,23588.0,0.6741]
[1659258007478,0.40725733,23594.0,23588.0,0.6241]
[1659258007698,0.40725733,23594.0,23588.0,0.6691]
[1659258008173,1.26805733,23595.0,23588.0,1.07635733]
[1659258008367,0.96805733,23595.0,23588.0,1.07635733]
[1659258008592,0.005,23594.0,23588.0,1.06635733]
[1659258008827,0.005,23594.0,23589.0,0.3]
[1659258009289,0.005,23594.0,23588.0,1.06635733]
[1659258009544,0.00876779,23592.0,23588.0,1.06635733]
[1659258009754,0.00876779,23592.0,23589.0,0.03363261]
[1659258010194,0.01645502,23592.0,23589.0,0.03363261]
[1659258010459,0.01645502,23592.0,23589.0,0.11163261]
[1659258010919,0.00876779,23592.0,23589.0,0.11163261]
[1659258011823,0.00876779,23592.0,23589.0,0.33363261]
[1659258012152,0.00876779,23592.0,23591.0,0.05]
[1659258012504,0.00980834,23592.0,23591.0,0.05]
[1659258012746,0.00876779,23592.0,23591.0,0.05]
[1659258013199,0.00876779,23592.0,23589.0,0.078]
[1659258013475,0.00876779,23592.0,23590.0,0.03363261]
[1659258013711,0.01645502,23592.0,23588.0,0.40725733]
[1659258013940,0.00876779,23592.0,23588.0,0.40725733]
[1659258014627,0.02776779,23592.0,23589.0,0.03363261]
[1659258015304,0.02776779,23592.0,23588.0,0.48325733]
[1659258016246,0.00876779,23592.0,23588.0,0.40725733]
[1659258016470,0.03276779,23592.0,23588.0,0.48415209]
[1659258016711,0.03276779,23592.0,23589.0,0.03363261]
[1659258017861,0.00876779,23592.0,23590.0,0.00040107]
[1659258018134,0.00876779,23592.0,23587.0,0.5854998]
[1659258018375,0.00876779,23592.0,23587.0,0.99275713]
[1659258018609,0.02976779,23592.0,23590.0,0.076]
[1659258018839,0.00104055,23591.0,23590.0,0.076]
[1659258019061,0.00768723,23591.0,23590.0,0.076]
[1659258019293,0.021,23592.0,23590.0,0.1099492]
[1659258019507,0.00876779,23591.0,23590.0,0.1099492]
[1659258019736,0.00876779,23591.0,23590.0,0.0339492]
[1659258020190,0.00876779,23591.0,23587.0,0.40735713]
[1659258020196,0.00876779,23591.0,23590.0,0.03372869]
[1659258020413,0.00876779,23591.0,23590.0,0.11172869]
[1659258021072,0.01645502,23591.0,23590.0,0.078]
[1659258021745,0.01645502,23591.0,23587.0,0.5776998]
[1659258021993,0.01645502,23591.0,23588.0,0.0337287]
[1659258022222,0.01645502,23591.0,23587.0,0.5776998]
[1659258022455,0.01645502,23591.0,23587.0,0.6556998]
[1659258023145,0.01645502,23591.0,23588.0,0.03402949]
[1659258023584,0.00876779,23591.0,23588.0,0.03402949]
[1659258024495,0.00876779,23591.0,23588.0,0.11202949]
[1659258025409,0.00876779,23591.0,23588.0,0.07839688]
[1659258025878,0.00876779,23591.0,23587.0,0.5776998]
[1659258026529,0.00876779,23591.0,23587.0,0.6556998]
[1659258026774,0.00876779,23591.0,23590.0,0.045]
[1659258027207,0.01645502,23591.0,23590.0,0.045]
[1659258028658,0.01645502,23591.0,23590.0,0.123]
[1659258028874,0.00876779,23591.0,23590.0,0.123]
[1659258029800,0.00876779,23591.0,23590.0,0.045]
[1659258030477,0.00876779,23591.0,23590.0,0.123]
[1659258031161,0.00876779,23591.0,23590.0,0.023]
[1659258031868,0.00876779,23591.0,23589.0,0.03402947]
[1659258032560,0.05876779,23591.0,23589.0,0.03402947]
[1659258032783,0.05876779,23591.0,23589.0,0.03363261]
[1659258033471,0.05876779,23591.0,23587.0,0.5776998]
[1659258033720,0.00876779,23591.0,23587.0,0.5776998]
[1659258033942,0.00876779,23591.0,23588.0,0.03363261]
[1659258034382,0.05876779,23591.0,23589.0,0.00073978]
[1659258034614,0.05876779,23591.0,23587.0,0.5776998]
[1659258034835,0.05876779,23591.0,23588.0,0.03363261]
[1659258035809,0.00876779,23591.0,23588.0,0.03363261]
[1659258036473,0.05876779,23591.0,23587.0,0.5776998]
[1659258036692,0.05876779,23591.0,23588.0,0.03363261]
[1659258037605,0.05876779,23591.0,23587.0,0.5776998]
[1659258037825,0.00876779,23591.0,23587.0,0.5776998]
[1659258038092,0.00876779,23591.0,23588.0,0.03363261]
[1659258038300,0.00768723,23590.0,23587.0,0.5776998]
[1659258038965,0.05676779,23591.0,23588.0,0.03402962]
[1659258039947,0.06445502,23591.0,23588.0,0.03402962]
[1659258040168,0.01645502,23591.0,23588.0,0.03402962]
[1659258040388,0.05876779,23591.0,23588.0,0.44128695]
[1659258040613,0.05876779,23591.0,23590.0,0.4]
[1659258041065,0.05876779,23591.0,23590.0,0.80725733]
[1659258041309,0.05876779,23591.0,23590.0,1.10725733]
[1659258041536,0.05876779,23591.0,23590.0,0.80725733]
[1659258041756,0.05876779,23591.0,23590.0,0.45725733]
[1659258041757,0.00876779,23591.0,23590.0,0.45725733]
[1659258042432,0.03376779,23591.0,23590.0,0.45725733]
[1659258043966,0.00876779,23591.0,23590.0,0.45725733]
[1659258044422,0.03376779,23591.0,23590.0,0.45725733]
[1659258045824,0.00876779,23591.0,23590.0,0.45725733]
[1659258046506,0.03376779,23591.0,23590.0,0.45725733]
[1659258046740,0.04145502,23591.0,23587.0,0.5776998]
[1659258047700,0.01645502,23591.0,23588.0,0.03403339]
[1659258047938,0.00876779,23591.0,23588.0,0.03403339]
[1659258048168,0.00876779,23591.0,23589.0,0.40725733]
[1659258048623,0.01676779,23591.0,23589.0,0.40725733]
[1659258048840,0.00768723,23590.0,23588.0,0.03403339]
[1659258049095,0.01676779,23591.0,23587.0,0.5776998]
[1659258049315,0.01676779,23591.0,23588.0,0.03403339]
[1659258049545,0.008,23591.0,23588.0,0.03403339]
[1659258049772,0.00876779,23590.0,23588.0,0.03403339]
[1659258050438,0.02476779,23590.0,23588.0,0.03403339]
[1659258051760,0.01645502,23590.0,23587.0,0.5776998]
[1659258052211,0.00876779,23590.0,23587.0,0.5776998]
[1659258052459,0.02476779,23590.0,23587.0,0.5776998]
[1659258052892,0.02476779,23590.0,23589.0,0.05]
[1659258052893,0.02466658,23590.0,23589.0,0.05]
[1659258053119,0.02466658,23590.0,23588.0,0.03394997]
[1659258053336,0.02466658,23590.0,23587.0,0.5776998]
[1659258053761,0.00866658,23590.0,23587.0,0.5776998]
[1659258054186,0.00866658,23590.0,23588.0,0.0338897]
[1659258054403,0.02766658,23590.0,23588.0,0.0338897]
[1659258055513,0.03535381,23590.0,23587.0,0.5776998]
[1659258055720,0.00866658,23590.0,23587.0,0.5776998]
[1659258056587,0.00866658,23590.0,23588.0,0.0338897]
[1659258057287,0.02966658,23590.0,23588.0,0.0338897]
[1659258058565,0.00866658,23590.0,23588.0,0.0338897]
[1659258058901,0.00866658,23590.0,23587.0,0.5776998]
[1659258059127,0.00838724,23590.0,23587.0,0.5776998]
[1659258059354,0.00838724,23590.0,23587.0,9.98e-05]
[1659258060032,0.01607447,23590.0,23587.0,9.98e-05]
[1659258060249,0.03507447,23590.0,23587.0,9.98e-05]
[1659258060963,0.05107447,23590.0,23587.0,9.98e-05]
[1659258061178,0.05003392,23590.0,23587.0,0.03422646]
[1659258061398,0.04338724,23590.0,23587.0,0.03422646]
[1659258061617,0.05107447,23590.0,23587.0,0.03422646]
[1659258062064,0.01607447,23590.0,23587.0,9.98e-05]
[1659258063952,0.01607447,23590.0,23588.0,0.00049403]
[1659258064189,0.01607447,23590.0,23587.0,9.98e-05]
[1659258064863,0.06590527,23590.0,23587.0,0.00401094]
[1659258065125,0.06590527,23590.0,23588.0,0.00391114]
[1659258065351,0.05091631,23589.0,23588.0,0.00391114]
[1659258065566,0.08190527,23590.0,23588.0,0.03803778]
[1659258065785,0.0658308,23590.0,23588.0,0.00391114]
[1659258066010,0.05930355,23589.0,23588.0,0.00391114]
[1659258066524,0.00838724,23589.0,23588.0,0.03412664]
[1659258067189,0.00838724,23589.0,23587.0,9.98e-05]
[1659258067660,0.00838724,23589.0,23587.0,0.03422646]
[1659258068356,0.00838724,23589.0,23587.0,9.98e-05]
[1659258071501,0.95,23588.0,23582.0,0.21188]
[1659258071702,0.05091631,23583.0,23581.0,0.09526507]
[1659258071935,0.35091631,23582.0,23581.0,0.09539852]
[1659258072195,0.05091631,23582.0,23581.0,0.09539852]
[1659258072436,0.05860354,23582.0,23581.0,0.09539852]
[1659258072660,0.05091631,23582.0,23581.0,0.09526507]
[1659258073358,0.00838724,23584.0,23581.0,0.09526507]
[1659258074150,0.00838724,23584.0,23581.0,0.5025224]
[1659258074492,0.00942779,23584.0,23581.0,0.5025224]
[1659258074721,0.01607447,23584.0,23581.0,0.5025224]
[1659258074945,0.00838724,23584.0,23582.0,0.03363261]
[1659258075169,0.00838724,23584.0,23581.0,0.5025224]
[1659258075400,0.01838724,23584.0,23581.0,0.5025224]
[1659258075872,0.01838724,23584.0,23581.0,0.09526507]
[1659258076362,0.05091631,23582.0,23581.0,0.09526507]
[1659258077523,0.06291631,23582.0,23581.0,0.09526507]
[1659258077764,0.07130355,23582.0,23581.0,0.09526507]
[1659258078306,0.07130355,23582.0,23581.0,0.09515972]
[1659258078557,0.07899078,23582.0,23581.0,0.09515972]
[1659258078796,0.06699078,23582.0,23581.0,0.09515972]
[1659258079522,0.06999078,23582.0,23581.0,0.09515972]
[1659258079766,0.11999078,23582.0,23581.0,0.09515972]
[1659258080229,0.11999078,23582.0,23580.0,0.002]
[1659258080230,0.95091631,23581.0,23580.0,0.002]
[1659258080462,1.30091631,23581.0,23580.0,0.002]
[1659258080712,0.40091631,23581.0,23580.0,0.002]
[1659258080977,0.85817364,23581.0,23580.0,0.002]
[1659258081215,0.90817364,23581.0,23580.0,0.002]
[1659258081452,0.95717364,23581.0,23580.0,0.002]
[1659258081993,0.10091631,23578.0,23577.0,0.002]
[1659258082218,0.84004364,23578.0,23577.0,0.002]
[1659258082464,0.10091631,23577.0,23576.0,0.0001]
[1659258082690,1.40087364,23577.0,23576.0,0.0001]
[1659258082916,1.40926088,23577.0,23576.0,0.0001]
[1659258083181,1.44113088,23577.0,23576.0,0.0001]
[1659258083424,0.10091631,23576.0,23573.0,0.0011]
[1659258083690,0.50817364,23576.0,23573.0,0.0011]
[1659258083922,0.05091631,23574.0,23573.0,0.0011]
[1659258084167,0.10091631,23574.0,23573.0,0.0011]
[1659258084394,0.15091631,23574.0,23573.0,0.0011]
[1659258084857,0.50725733,23576.0,23567.0,0.36688852]
[1659258084858,0.05091631,23570.0,23567.0,0.36688852]
[1659258085095,0.05091631,23570.0,23568.0,0.03363261]
[1659258085339,0.40725733,23574.0,23567.0,0.77414585]
[1659258085588,0.05,23569.0,23566.0,0.002]
[1659258085853,0.10091631,23567.0,23566.0,0.002]
[1659258086084,0.05,23566.0,23565.0,0.002]
[1659258087050,0.59999696,23567.0,23565.0,0.002]
[1659258087290,0.05,23566.0,23565.0,0.002]
[1659258087563,0.006,23566.0,23565.0,0.002]
[1659258088299,0.01438724,23566.0,23565.0,0.45370733]
[1659258088531,0.01438724,23566.0,23565.0,0.75892533]
[1659258088777,0.01438724,23566.0,23565.0,0.45370733]
[1659258089023,0.01438724,23566.0,23565.0,0.40925733]
[1659258089244,0.00838724,23566.0,23565.0,0.40925733]
[1659258089481,0.02138724,23566.0,23565.0,0.002]
[1659258090229,0.02138724,23566.0,23565.0,0.45370733]
[1659258090455,0.02138724,23566.0,23565.0,1.14810794]
[1659258090708,0.59999696,23567.0,23566.0,0.05736551]
[1659258090965,0.59999696,23567.0,23566.0,1.06984084]
[1659258091176,0.59999696,23567.0,23566.0,1.08248432]
[1659258091872,0.59999696,23567.0,23566.0,0.76984084]
[1659258092095,0.59999696,23567.0,23566.0,0.40725733]
[1659258092552,0.59999696,23567.0,23566.0,0.71247533]
[1659258092990,0.59999696,23567.0,23566.0,0.74610794]
[1659258093218,0.59999696,23567.0,23566.0,0.71247533]
[1659258093475,0.61499696,23567.0,23566.0,0.70725733]
[1659258093678,0.61499696,23567.0,23566.0,1.01247533]
[1659258093896,0.61499696,23567.0,23566.0,0.40725733]
[1659258094116,0.61499696,23567.0,23566.0,0.74610794]
[1659258094343,0.62268419,23567.0,23566.0,0.40725733]
[1659258094564,0.61499696,23567.0,23566.0,0.40725733]
[1659258094809,0.59999696,23567.0,23566.0,0.40725733]
[1659258095052,0.59999696,23567.0,23566.0,0.44088994]
[1659258095316,0.59999696,23567.0,23566.0,0.40725733]
[1659258095542,0.61699696,23567.0,23566.0,0.40725733]
[1659258095780,0.61699696,23567.0,23565.0,0.002]
[1659258095995,0.61699696,23567.0,23566.0,0.40725733]
[1659258096451,0.62468419,23567.0,23566.0,0.40725733]
[1659258096682,0.60768419,23567.0,23566.0,0.40725733]
[1659258096920,0.59999696,23567.0,23566.0,0.40725733]
[1659258097606,0.61899696,23567.0,23566.0,0.40725733]
[1659258098067,0.61899696,23567.0,23566.0,0.44088994]
[1659258098522,0.61899696,23567.0,23566.0,0.40725733]
[1659258098757,0.59999696,23567.0,23566.0,0.40725733]
[1659258099470,0.62668419,23567.0,23566.0,0.40725733]
[1659258099694,0.62668419,23567.0,23565.0,0.002]
[1659258099927,0.62668419,23567.0,23565.0,0.03563261]
[1659258100142,0.61899696,23567.0,23565.0,0.03563261]
[1659258100395,0.61899696,23567.0,23565.0,0.002]
[1659258100634,0.62668419,23567.0,23565.0,0.40925733]
[1659258100863,0.59999696,23567.0,23566.0,1.16984084]
[1659258101093,0.59999696,23567.0,23566.0,1.15347345]
[1659258101335,0.59999696,23567.0,23566.0,1.10347345]
[1659258101577,0.62299696,23567.0,23566.0,1.10347345]
[1659258101798,0.62299696,23567.0,23566.0,1.15347345]
[1659258102726,0.62299696,23567.0,23566.0,0.80347345]
[1659258102951,0.59999696,23567.0,23566.0,1.15347345]
[1659258103396,0.62599696,23567.0,23566.0,1.15347345]
[1659258103607,0.62599696,23567.0,23566.0,0.76984084]
[1659258103984,0.62599696,23567.0,23566.0,0.80347345]
[1659258104693,0.59999696,23567.0,23565.0,0.002]
[1659258104911,0.59999696,23567.0,23566.0,0.40725733]
[1659258105547,0.60699696,23567.0,23566.0,0.40725733]
[1659258105778,0.60699696,23567.0,23566.0,0.74610794]
[1659258106000,0.60699696,23567.0,23566.0,0.40725733]
[1659258106222,0.60699696,23567.0,23566.0,0.71247533]
[1659258106726,0.59999696,23567.0,23566.0,0.71247533]
[1659258106953,0.59999696,23567.0,23566.0,0.45725733]
[1659258107183,0.59999696,23567.0,23566.0,0.71247533]
[1659258107405,0.61699696,23567.0,23566.0,0.40725733]
[1659258107847,0.61699696,23567.0,23566.0,0.44088994]
[1659258108079,0.61699696,23567.0,23566.0,0.40725733]
[1659258108769,0.59999696,23567.0,23566.0,0.40725733]
[1659258109024,0.59999696,23567.0,23565.0,0.40925733]
[1659258109467,0.62299696,23567.0,23565.0,0.40925733]
[1659258110434,0.62299696,23567.0,23565.0,0.002]
[1659258110690,0.05,23566.0,23565.0,0.002]
[1659258111393,0.062,23566.0,23565.0,0.002]
[1659258112759,0.05,23566.0,23565.0,0.002]
[1659258113494,0.112,23566.0,23565.0,0.002]
[1659258113725,1.0303,23566.0,23565.0,0.002]
[1659258113947,0.9803,23566.0,23565.0,0.002]
[1659258114165,0.6803,23566.0,23565.0,0.002]
[1659258114426,0.7303,23566.0,23565.0,0.002]
[1659258114886,1.07555733,23566.0,23565.0,0.002]
[1659258115143,1.02555733,23566.0,23565.0,0.002]
[1659258115368,1.14855733,23566.0,23565.0,0.002]
[1659258115828,1.09855733,23566.0,23565.0,0.002]
[1659258116727,1.02555733,23566.0,23565.0,0.002]
[1659258117464,1.09355733,23566.0,23565.0,0.002]
[1659258118872,1.02555733,23566.0,23565.0,0.002]
[1659258119572,1.09355733,23566.0,23565.0,0.002]
[1659258120254,0.068,23566.0,23565.0,0.002]
[1659258120486,0.068,23566.0,23565.0,0.04645]
[1659258120705,0.59999696,23567.0,23565.0,0.04645]